bitfinex-derivatives/quotes_BTCF0:USTF0_20251103
["timestamp","ask_amount","ask_price","bid_price","bid_amount"]
[1762156641407,0.74132,107760.0,107750.0,0.05749]
[1762156641705,0.74632,107760.0,107750.0,0.05749]
[1762156642805,0.0551,107740.0,107730.0,0.04982838]
[1762156643008,0.04401,107730.0,107720.0,0.04982838]
[1762156643198,0.41785,107730.0,107720.0,0.04982838]
[1762156643604,0.41785,107730.0,107720.0,0.10631838]
[1762156644303,0.41885,107730.0,107720.0,0.11731838]
[1762156644806,0.41885,107730.0,107720.0,0.10356838]
[1762156645710,0.40581,107730.0,107720.0,0.11731838]
[1762156646209,0.40581,107730.0,107720.0,0.12031838]
[1762156646709,0.40681,107730.0,107720.0,0.12731838]
[1762156646903,0.40781,107730.0,107720.0,0.14131838]
[1762156647305,0.04601,107730.0,107720.0,0.26955904]
[1762156647504,0.04701,107730.0,107720.0,0.28555904]
[1762156647700,0.04501,107730.0,107720.0,0.21473066]
[1762156647908,0.04801,107730.0,107720.0,0.29746693]
[1762156648709,0.04801,107730.0,107720.0,0.24773066]
[1762156649012,0.04701,107730.0,107720.0,0.23173066]
[1762156649215,0.04801,107730.0,107720.0,0.24573066]
[1762156649613,0.04801,107730.0,107720.0,0.60653066]
[1762156649816,0.04501,107730.0,107720.0,0.57353066]
[1762156650018,0.04701,107730.0,107720.0,0.59353066]
[1762156650314,0.04701,107730.0,107720.0,0.59553066]
[1762156651009,0.001,107730.0,107720.0,0.6419685]
[1762156651210,0.003,107730.0,107720.0,0.9856485]
[1762156652016,0.002,107730.0,107720.0,0.90321066]
[1762156652218,0.003,107730.0,107720.0,0.91721066]
[1762156652518,0.003,107730.0,107720.0,1.00256052]
[1762156652718,0.003,107730.0,107720.0,1.00456052]
[1762156653221,0.001,107730.0,107720.0,0.98056052]
[1762156653516,0.002,107730.0,107720.0,0.99456052]
[1762156653711,0.002,107730.0,107720.0,1.06099836]
[1762156653914,0.72653,107750.0,107740.0,0.05702]
[1762156654113,0.72653,107750.0,107740.0,0.17081526]
[1762156656415,0.72753,107750.0,107740.0,0.07202]
[1762156656922,0.72653,107750.0,107740.0,0.06302]
[1762156657215,0.72853,107750.0,107740.0,0.19181458]
[1762156657420,0.36773,107750.0,107740.0,0.20381458]
[1762156658122,0.36773,107750.0,107740.0,0.19781458]
[1762156658318,0.36773,107750.0,107740.0,0.60835777]
[1762156658319,0.04701,107750.0,107740.0,0.60835777]
[1762156658522,0.04701,107750.0,107740.0,0.19781458]
[1762156658823,0.04601,107750.0,107740.0,0.18581458]
[1762156659324,0.05905,107750.0,107740.0,0.10854319]
[1762156659527,0.41985,107750.0,107740.0,0.0588]
[1762156659723,0.41985,107750.0,107740.0,0.10254319]
[1762156659918,0.42285,107750.0,107740.0,0.14454319]
[1762156660422,0.44421155,107750.0,107740.0,0.14454319]
[1762156660613,0.44121155,107750.0,107740.0,0.10854319]
[1762156660816,0.55500613,107750.0,107740.0,0.06474319]
[1762156661013,0.55500613,107750.0,107740.0,0.015]
[1762156661217,0.44121155,107750.0,107740.0,0.03725]
[1762156661424,0.44121155,107750.0,107740.0,0.0588]
[1762156661625,0.44121155,107750.0,107740.0,0.10745]
[1762156661626,0.43117155,107750.0,107740.0,0.10745]
[1762156661820,0.07037155,107750.0,107740.0,0.27098777]
[1762156662023,0.43217155,107750.0,107740.0,0.11945]
[1762156662524,0.41081,107750.0,107740.0,0.16919319]
[1762156662722,0.40881,107750.0,107740.0,0.15419319]
[1762156663122,0.55700814,107750.0,107740.0,0.048]
[1762156663322,0.05145,107740.0,107730.0,0.04974319]
[1762156663526,0.84668458,107740.0,107730.0,0.04974319]
[1762156663728,0.05804,107730.0,107720.0,0.07258319]
[1762156664029,0.41884,107730.0,107720.0,0.05665]
[1762156665528,0.41984,107730.0,107720.0,0.06365]
[1762156666129,0.41884,107730.0,107720.0,0.06265]
[1762156666526,0.42384,107730.0,107720.0,0.06265]
[1762156666728,0.42384,107730.0,107720.0,0.11247016]
[1762156667426,0.42084,107730.0,107720.0,0.11247016]
[1762156667825,0.42084,107730.0,107720.0,0.10647016]
[1762156668026,0.42184,107730.0,107720.0,0.11347016]
[1762156668429,0.42084,107730.0,107720.0,0.11147016]
[1762156669027,0.42184,107730.0,107720.0,0.11347016]
[1762156669422,0.53563458,107730.0,107720.0,0.05682016]
[1762156669631,0.53463458,107730.0,107720.0,0.04982016]
[1762156669833,0.53263458,107730.0,107720.0,0.06082016]
[1762156670728,0.53263458,107730.0,107720.0,0.05482016]
[1762156671121,0.53263458,107730.0,107720.0,0.04982016]
[1762156671327,0.53363458,107730.0,107720.0,0.05582016]
[1762156672130,0.41984,107730.0,107720.0,0.11247016]
[1762156672433,0.73952,107730.0,107720.0,0.21061474]
[1762156672634,0.73952,107730.0,107720.0,0.09682016]
[1762156672827,0.74252,107730.0,107720.0,0.09382016]
[1762156673132,0.74252,107730.0,107720.0,0.09682016]
[1762156673531,0.73952,107730.0,107720.0,0.07566016]
[1762156673826,0.73952,107730.0,107720.0,0.08166016]
[1762156674033,0.73952,107730.0,107720.0,0.05882016]
[1762156675133,0.75052,107730.0,107720.0,0.05682016]
[1762156675737,0.73952,107730.0,107720.0,0.04982016]
[1762156676037,0.74052,107730.0,107720.0,0.06582016]
[1762156676438,0.74052,107730.0,107720.0,0.10982016]
[1762156676736,0.76552,107730.0,107720.0,0.10182016]
[1762156677334,0.74052,107730.0,107720.0,0.10082016]
[1762156677535,0.76203607,107730.0,107720.0,0.057]
[1762156678130,0.76103607,107730.0,107720.0,0.05]
[1762156678441,0.76203607,107730.0,107720.0,0.057]
[1762156679136,0.76203607,107730.0,107720.0,0.02984]
[1762156679338,0.76303607,107730.0,107720.0,0.05184]
[1762156679840,0.76303607,107730.0,107720.0,0.073]
[1762156680040,0.76299607,107730.0,107720.0,0.073]
[1762156680339,0.74148,107730.0,107720.0,0.073]
[1762156680531,0.74148,107730.0,107720.0,0.08565]
[1762156680731,0.76298995,107730.0,107720.0,0.08565]
[1762156681236,0.76198995,107730.0,107720.0,0.07865]
[1762156681429,0.77298995,107730.0,107720.0,0.04584]
[1762156681643,0.77298995,107730.0,107720.0,0.023]
[1762156682034,0.88678453,107730.0,107720.0,0.023]
[1762156682434,0.04496,107710.0,107700.0,0.10647016]
[1762156682636,0.72632,107710.0,107700.0,0.05665]
[1762156683541,0.72632,107710.0,107700.0,0.12308784]
[1762156684442,0.72732,107710.0,107700.0,0.13308784]
[1762156684942,0.72732,107710.0,107700.0,0.12308784]
[1762156684943,0.72632,107710.0,107700.0,0.12308784]
[1762156685143,0.73132,107710.0,107700.0,0.12408784]
[1762156685338,0.74132,107710.0,107700.0,0.05865]
[1762156685540,0.73632,107710.0,107700.0,0.05765]
[1762156685841,0.74332,107710.0,107700.0,0.05865]
[1762156686730,0.74332,107710.0,107700.0,0.05082631]
[1762156686731,0.86015458,107710.0,107700.0,0.05082631]
[1762156687042,0.86015458,107710.0,107700.0,0.05182631]
[1762156687043,0.87315458,107710.0,107700.0,0.05182631]
[1762156687233,0.87315458,107710.0,107700.0,0.07466631]
[1762156687629,0.86615458,107710.0,107700.0,0.07366631]
[1762156687842,0.87115458,107710.0,107700.0,0.07466631]
[1762156688038,1.23195458,107710.0,107700.0,0.07466631]
[1762156688237,1.11316,107710.0,107700.0,0.07366631]
[1762156688437,1.11416,107710.0,107700.0,0.08466631]
[1762156688637,1.10116,107710.0,107700.0,0.08366631]
[1762156688838,1.10516,107710.0,107700.0,0.08466631]
[1762156689042,1.11116,107710.0,107700.0,0.07466631]
[1762156689639,1.11016,107710.0,107700.0,0.10066631]
[1762156690342,1.10716,107710.0,107700.0,0.07366631]
[1762156690543,1.11416,107710.0,107700.0,0.07466631]
[1762156690746,1.10716,107710.0,107700.0,0.07366631]
[1762156691043,1.22295458,107710.0,107700.0,0.08666631]
[1762156691942,1.21795458,107710.0,107700.0,0.10866631]
[1762156692244,1.22295458,107710.0,107700.0,0.10966631]
[1762156692443,1.21795458,107710.0,107700.0,0.10866631]
[1762156692643,1.21995458,107710.0,107700.0,0.12266631]
[1762156693044,1.21995458,107710.0,107700.0,0.07284]
[1762156693239,1.21695458,107710.0,107700.0,0.03884]
[1762156694147,1.21795458,107710.0,107700.0,0.02584]
[1762156694647,1.21495458,107710.0,107700.0,0.02484]
[1762156694843,1.21595458,107710.0,107700.0,0.03784]
[1762156695145,1.21995458,107710.0,107700.0,0.09423]
[1762156695938,0.41176,107710.0,107700.0,0.22167458]
[1762156696140,0.73228,107710.0,107700.0,0.27150089]
[1762156696448,0.02837,107710.0,107700.0,0.74609547]
[1762156696647,0.006,107710.0,107700.0,0.74609547]
[1762156696947,0.004,107710.0,107700.0,0.747707]
[1762156697146,0.006,107710.0,107700.0,0.68226916]
[1762156697643,0.006,107710.0,107700.0,0.69126916]
[1762156697947,0.05147,107710.0,107700.0,0.69126916]
[1762156698140,0.04747,107710.0,107700.0,0.54247458]
[1762156698342,0.05247,107710.0,107700.0,0.58247458]
[1762156698542,0.05247,107710.0,107700.0,0.69626916]
[1762156698748,0.05247,107710.0,107700.0,0.58247458]
[1762156702744,0.53704458,107710.0,107700.0,0.14410838]
[1762156703040,0.42325,107710.0,107700.0,0.14410838]
[1762156703648,0.53704458,107710.0,107700.0,0.12271838]
[1762156703846,0.53704458,107710.0,107700.0,0.09987838]
[1762156704352,0.53204458,107710.0,107700.0,0.06687838]
[1762156704942,0.91437348,107710.0,107700.0,0.017]
[1762156705139,0.05196,107700.0,107690.0,0.04987838]
[1762156705344,0.84711458,107700.0,107690.0,0.04987838]
[1762156706448,0.05866,107690.0,107680.0,0.04987838]
[1762156706642,0.53325458,107690.0,107680.0,0.04987838]
[1762156707353,0.05878,107680.0,107670.0,0.04987838]
[1762156707544,0.85397458,107680.0,107670.0,0.04987838]
[1762156708340,0.74018,107680.0,107670.0,0.04987838]
[1762156708845,0.74218,107680.0,107670.0,0.04987838]
[1762156709155,0.74418,107680.0,107670.0,0.06687838]
[1762156710353,0.98300689,107680.0,107670.0,0.06687838]
[1762156710746,1.58300689,107680.0,107670.0,0.06687838]
[1762156711250,1.58300689,107680.0,107670.0,0.017]
[1762156711749,1.58300689,107680.0,107670.0,0.06687838]
[1762156711949,1.58100689,107680.0,107670.0,0.06687838]
[1762156712149,1.34418,107680.0,107670.0,0.06687838]
[1762156712347,1.34318,107680.0,107670.0,0.05887838]
[1762156713351,1.58200689,107680.0,107660.0,0.05294344]
[1762156713552,0.64544689,107670.0,107660.0,0.05294344]
[1762156714149,0.64544689,107670.0,107660.0,0.00306506]
[1762156714752,0.64544689,107670.0,107660.0,0.04406506]
[1762156715069,0.64844689,107670.0,107660.0,0.04406506]
[1762156715455,0.64544689,107670.0,107660.0,0.00306506]
[1762156715648,0.64944689,107670.0,107660.0,0.01806506]
[1762156716054,0.64744689,107670.0,107660.0,0.01806506]
[1762156716255,0.65044689,107670.0,107660.0,0.01806506]
[1762156717550,0.65344689,107670.0,107660.0,0.04306506]
[1762156717751,0.65044689,107670.0,107660.0,0.04306506]
[1762156717954,0.65244689,107670.0,107660.0,0.04306506]
[1762156718153,1.25244689,107670.0,107660.0,0.04306506]
[1762156718361,1.25244689,107670.0,107660.0,0.00806506]
[1762156718362,1.38636106,107670.0,107660.0,0.00806506]
[1762156718561,1.38936106,107670.0,107660.0,0.00806506]
[1762156718859,1.54433034,107670.0,107640.0,0.01375593]
[1762156719051,0.86414106,107650.0,107640.0,0.03551593]
[1762156719369,0.86414106,107650.0,107640.0,0.05824593]
[1762156720851,0.7216,107650.0,107640.0,0.05824593]
[1762156721857,0.7236,107650.0,107640.0,0.05824593]
[1762156722163,0.7566,107650.0,107640.0,0.05824593]
[1762156722355,0.7546,107650.0,107640.0,0.05824593]
[1762156722551,0.7566,107650.0,107640.0,0.05824593]
[1762156722764,0.7476,107650.0,107640.0,0.05824593]
[1762156722955,0.7456,107650.0,107640.0,0.05824593]
[1762156723156,0.7476,107650.0,107640.0,0.05824593]
[1762156723959,0.7476,107650.0,107640.0,0.00010593]
[1762156723960,0.89014106,107650.0,107640.0,0.00010593]
[1762156725061,1.69838106,107650.0,107620.0,0.0609162]
[1762156725261,0.86414106,107630.0,107620.0,0.0030662]
[1762156725661,1.46414106,107630.0,107620.0,0.0030662]
[1762156726072,1.46422973,107630.0,107620.0,0.0030662]
[1762156726871,1.46722973,107630.0,107620.0,0.0030662]
[1762156727262,1.46422973,107630.0,107620.0,0.0030662]
[1762156727462,1.46722973,107630.0,107620.0,0.0030662]
[1762156728367,1.47322973,107630.0,107620.0,0.0100662]
[1762156729062,1.47422973,107630.0,107620.0,0.0100662]
[1762156729767,1.46722973,107630.0,107620.0,0.0030662]
[1762156729963,1.47322973,107630.0,107620.0,0.0100662]
[1762156730164,1.47322973,107630.0,107620.0,0.0231962]
[1762156730565,0.87022973,107630.0,107620.0,0.0231962]
[1762156730867,0.87322973,107630.0,107620.0,0.0231962]
[1762156731468,1.19406973,107630.0,107620.0,0.0301962]
[1762156732161,1.19406973,107630.0,107620.0,0.0161962]
[1762156732364,1.18806973,107630.0,107620.0,0.0301962]
[1762156732571,1.19406973,107630.0,107620.0,0.0170662]
[1762156733871,1.19106973,107630.0,107620.0,0.0170662]
[1762156734066,1.19406973,107630.0,107620.0,0.0170662]
[1762156739264,1.19394973,107630.0,107620.0,0.0751962]
[1762156740472,1.16549386,107630.0,107620.0,0.0751962]
[1762156741474,1.27357905,107630.0,107620.0,0.0030662]
[1762156741673,1.27357905,107630.0,107600.0,0.05813]
[1762156741674,1.87004424,107630.0,107600.0,0.05813]
[1762156741974,0.94977038,107610.0,107590.0,0.05813]
[1762156742174,0.90982454,107600.0,107590.0,0.05813]
[1762156742468,0.90982454,107600.0,107580.0,0.11107572]
[1762156742674,0.47488519,107590.0,107580.0,0.11107572]
[1762156742972,0.58897038,107590.0,107580.0,0.08839572]
[1762156743363,0.58897038,107590.0,107580.0,0.00306734]
[1762156743967,0.58905415,107590.0,107580.0,0.00306734]
[1762156744369,0.50363919,107590.0,107580.0,0.00306734]
[1762156745367,0.51063919,107590.0,107580.0,0.00306734]
[1762156745775,0.51363919,107590.0,107580.0,0.00306734]
[1762156747074,1.34599919,107590.0,107580.0,0.00306734]
[1762156747372,1.34599919,107590.0,107570.0,0.04987838]
[1762156747569,0.82459542,107580.0,107570.0,0.04987838]
[1762156748067,0.82468238,107580.0,107560.0,0.06310517]
[1762156748268,0.68192696,107580.0,107570.0,0.04987838]
[1762156748473,1.04272696,107580.0,107560.0,0.04997517]
[1762156748669,0.3608,107570.0,107560.0,0.04997517]
[1762156748977,0.3608,107570.0,107560.0,0.06310517]
[1762156749370,0.50355542,107570.0,107560.0,0.06310517]
[1762156749972,0.50655542,107570.0,107560.0,0.06310517]
[1762156750169,0.50655542,107570.0,107560.0,0.04997517]
[1762156750671,0.51355542,107570.0,107560.0,0.06310517]
[1762156750981,0.83463542,107570.0,107560.0,0.06310517]
[1762156751181,0.83463542,107570.0,107560.0,0.08542517]
[1762156751868,0.83463542,107570.0,107560.0,0.04997517]
[1762156753581,0.82763542,107570.0,107560.0,0.04997517]
[1762156753783,0.85263542,107570.0,107560.0,0.05497517]
[1762156754482,0.82763542,107570.0,107560.0,0.04997517]
[1762156754684,0.83163542,107570.0,107560.0,0.06597517]
[1762156755185,0.83163542,107570.0,107560.0,0.12402517]
[1762156755186,0.51055542,107570.0,107560.0,0.12402517]
[1762156755582,0.3678,107570.0,107560.0,0.12402517]
[1762156755783,0.83159542,107570.0,107560.0,0.07414679]
[1762156756587,0.83159542,107570.0,107560.0,0.12408713]
[1762156756893,0.83159542,107570.0,107560.0,0.10251713]
[1762156757081,0.83159542,107570.0,107560.0,0.07933713]
[1762156757482,0.83159542,107570.0,107560.0,0.06603713]
[1762156759787,0.83167542,107570.0,107560.0,0.07933713]
[1762156760086,0.83167542,107570.0,107560.0,0.10251713]
[1762156760284,0.8532218,107570.0,107560.0,0.05257679]
[1762156762783,0.8492218,107570.0,107560.0,0.00409679]
[1762156762988,0.8792218,107570.0,107560.0,0.00409679]
[1762156763490,0.8492218,107570.0,107560.0,9.679e-05]
[1762156763787,0.8512218,107570.0,107560.0,0.00809679]
[1762156764386,0.99404699,107570.0,107560.0,0.00809679]
[1762156764585,1.22644699,107570.0,107560.0,0.00809679]
[1762156765283,0.99404699,107570.0,107560.0,0.00809679]
[1762156765485,0.85129157,107570.0,107560.0,0.00809679]
[1762156765787,0.99404699,107570.0,107560.0,0.00809679]
[1762156766582,0.85129157,107570.0,107560.0,0.00809679]
[1762156766782,0.99404699,107570.0,107560.0,0.00809679]
[1762156768390,1.05130886,107570.0,107560.0,0.00809679]
[1762156769394,1.04830886,107570.0,107560.0,0.00809679]
[1762156769691,0.93605129,107570.0,107560.0,0.02209679]
[1762156769892,0.93605129,107570.0,107560.0,0.08014679]
[1762156770588,0.50067372,107570.0,107560.0,0.08014679]
[1762156770792,0.50067372,107570.0,107560.0,0.08314679]
[1762156770793,0.47912734,107570.0,107560.0,0.08314679]
[1762156770992,0.79816734,107570.0,107560.0,0.06614679]
[1762156771193,0.80016734,107570.0,107560.0,0.08514679]
[1762156771388,0.47912734,107570.0,107560.0,0.08514679]
[1762156771594,0.79816734,107570.0,107560.0,0.06614679]
[1762156771795,0.80016734,107570.0,107560.0,0.08314679]
[1762156772299,0.50762078,107570.0,107560.0,0.08314679]
[1762156772689,0.50562078,107570.0,107560.0,0.06614679]
[1762156772889,0.50562078,107570.0,107560.0,0.07714679]
[1762156773087,0.82866078,107570.0,107560.0,0.08414679]
[1762156773996,0.82862078,107570.0,107560.0,0.08414679]
[1762156774196,0.50762078,107570.0,107560.0,0.08414679]
[1762156774397,0.82662078,107570.0,107560.0,0.06514679]
[1762156774592,0.82662078,107570.0,107560.0,0.06614679]
[1762156775499,0.82662078,107570.0,107560.0,0.06314679]
[1762156775500,0.86062078,107570.0,107560.0,0.06314679]
[1762156777303,0.86058078,107570.0,107560.0,0.06314679]
[1762156777794,0.53962078,107570.0,107560.0,0.06314679]
[1762156778000,0.49978078,107570.0,107560.0,0.06314679]
[1762156778395,0.86058078,107570.0,107560.0,0.06314679]
[1762156778589,0.88200862,107570.0,107560.0,0.06314679]
[1762156779702,0.88100862,107570.0,107560.0,0.06414679]
[1762156779890,0.88100862,107570.0,107560.0,0.04257679]
[1762156780094,0.88100862,107570.0,107560.0,0.01939679]
[1762156780290,0.97762678,107570.0,107560.0,0.01939679]
[1762156780697,0.98062678,107570.0,107560.0,0.01839679]
[1762156781193,0.97762678,107570.0,107560.0,0.00509679]
[1762156781399,0.97962678,107570.0,107560.0,0.07809679]
[1762156781796,0.94462678,107570.0,107560.0,0.05130679]
[1762156782010,0.98262678,107570.0,107560.0,0.05630679]
[1762156782603,0.94462678,107570.0,107560.0,0.05130679]
[1762156782792,0.94662678,107570.0,107560.0,0.05530679]
[1762156783195,0.94662678,107570.0,107560.0,0.02109679]
[1762156783492,0.94662678,107570.0,107560.0,0.04401679]
[1762156783697,0.94662678,107570.0,107560.0,0.07825679]
[1762156783897,0.94662678,107570.0,107560.0,0.05701679]
[1762156784304,0.94662678,107570.0,107560.0,0.07825679]
[1762156785299,0.94662678,107570.0,107560.0,0.05701679]
[1762156785901,0.94662678,107570.0,107560.0,0.07825679]
[1762156788308,0.97156206,107570.0,107560.0,0.07825679]
[1762156788508,0.97156206,107570.0,107560.0,0.05701679]
[1762156788708,0.94662678,107570.0,107560.0,0.05701679]
[1762156789410,0.97156206,107570.0,107560.0,0.05701679]
[1762156789599,0.97156206,107570.0,107560.0,0.02109679]
[1762156790409,0.97156206,107570.0,107560.0,0.05701679]
[1762156790706,0.97156206,107570.0,107560.0,0.07825679]
[1762156791407,0.97152206,107570.0,107560.0,0.07825679]
[1762156792410,0.84637623,107570.0,107560.0,0.07825679]
[1762156792812,0.52545623,107570.0,107560.0,0.07825679]
[1762156793002,0.84637623,107570.0,107560.0,0.07825679]
[1762156793310,0.84637623,107570.0,107560.0,0.05701679]
[1762156793508,0.84637623,107570.0,107560.0,0.02109679]
[1762156794204,0.84637623,107570.0,107560.0,0.05701679]
[1762156794604,0.84637623,107570.0,107560.0,0.07825679]
[1762156795307,0.84637623,107570.0,107560.0,0.02109679]
[1762156795507,0.96059957,107570.0,107560.0,0.02109679]
[1762156796915,0.95859957,107570.0,107560.0,0.01009679]
[1762156797710,0.95859957,107570.0,107550.0,0.05729]
[1762156798019,0.00118,107550.0,107540.0,0.06035848]
[1762156798213,0.93277452,107550.0,107540.0,0.06035848]
[1762156798815,0.93288578,107550.0,107540.0,0.06035848]
[1762156799219,0.93288578,107550.0,107540.0,0.00306848]
[1762156799415,0.93288578,107550.0,107540.0,0.05300882]
[1762156799814,0.96788578,107550.0,107540.0,0.08092882]
[1762156800011,0.96788578,107550.0,107540.0,0.10216882]
[1762156800215,0.96788578,107550.0,107540.0,0.06522848]
[1762156800216,0.39709126,107550.0,107540.0,0.06522848]
[1762156800421,0.73950573,107550.0,107540.0,0.11538971]
[1762156800721,0.73950573,107550.0,107540.0,0.12338971]
[1762156801117,0.73950573,107550.0,107540.0,0.11538971]
[1762156801314,0.71550573,107550.0,107540.0,0.09838971]
[1762156801516,0.71550573,107550.0,107540.0,0.04822848]
[1762156801812,0.71550573,107550.0,107540.0,0.00406848]
[1762156802512,0.04415,107530.0,107520.0,0.05016123]
[1762156802824,0.04415,107510.0,107500.0,0.12711126]
[1762156803011,0.72597657,107510.0,107500.0,0.12711126]
[1762156803331,0.72597657,107510.0,107500.0,0.06022962]
[1762156804117,0.73797657,107510.0,107500.0,0.06122962]
[1762156804318,0.41701657,107510.0,107500.0,0.06122962]
[1762156804628,0.33318657,107510.0,107500.0,0.12811126]
[1762156804823,0.01206657,107510.0,107500.0,0.48891126]
[1762156805119,0.33318657,107510.0,107500.0,0.42202962]
[1762156805325,0.33318657,107510.0,107500.0,0.50563168]
[1762156805526,0.34218657,107510.0,107500.0,0.42302962]
[1762156806026,0.33018657,107510.0,107500.0,0.4888337]
[1762156806222,0.32618657,107510.0,107500.0,0.4888337]
[1762156806526,0.36426657,107510.0,107500.0,0.4888337]
[1762156806714,0.40081657,107510.0,107500.0,0.4898337]
[1762156806914,0.42241657,107510.0,107500.0,0.4898337]
[1762156807120,0.78321657,107510.0,107500.0,0.1290337]
[1762156807718,0.78328239,107510.0,107500.0,0.1290337]
[1762156807914,0.05713239,107510.0,107500.0,0.1290337]
[1762156808114,0.02006582,107510.0,107500.0,0.42302962]
[1762156808323,0.05806582,107510.0,107500.0,0.73919168]
[1762156808527,0.05806582,107510.0,107500.0,0.50663168]
[1762156808727,0.10221582,107510.0,107500.0,0.50663168]
[1762156808927,0.06421582,107510.0,107500.0,0.50663168]
[1762156809122,0.09221582,107510.0,107500.0,0.50663168]
[1762156809325,0.07221582,107510.0,107500.0,0.14383168]
[1762156809626,0.09221582,107510.0,107500.0,0.14583168]
[1762156809925,0.42701582,107510.0,107500.0,0.14383168]
[1762156810127,0.44701582,107510.0,107500.0,0.12902855]
[1762156811327,0.44701582,107510.0,107500.0,0.06222962]
[1762156811630,0.42501582,107510.0,107500.0,0.12901619]
[1762156811831,0.46301582,107510.0,107500.0,0.12901619]
[1762156812020,0.46301582,107510.0,107500.0,0.06222962]
[1762156812418,0.46301582,107510.0,107500.0,0.06241962]
[1762156812627,0.78425582,107510.0,107500.0,0.06241962]
[1762156812932,0.78425582,107510.0,107500.0,0.12920619]
[1762156814330,0.79600582,107510.0,107500.0,0.09477619]
[1762156814926,0.79600582,107510.0,107500.0,0.07185619]
[1762156815125,0.79600582,107510.0,107500.0,0.00506962]
[1762156816940,1.39600582,107510.0,107500.0,6.962e-05]
[1762156817133,0.04334,107500.0,107490.0,0.06678657]
[1762156817330,0.40414,107500.0,107490.0,0.06678657]
[1762156818230,0.40414,107500.0,107490.0,0.12335657]
[1762156818433,0.40914,107500.0,107490.0,0.06778657]
[1762156818727,0.73058,107500.0,107490.0,0.08915657]
[1762156819435,0.73758,107500.0,107490.0,0.08915657]
[1762156820034,0.74058,107500.0,107490.0,0.09015657]
[1762156820235,0.74058,107500.0,107490.0,0.02337]
[1762156820436,0.73758,107500.0,107490.0,0.001]
[1762156820636,0.74158,107500.0,107490.0,0.002]
[1762156823638,0.7416562,107500.0,107490.0,0.002]
[1762156824452,0.4202162,107500.0,107490.0,0.05857]
[1762156824643,0.7416962,107500.0,107490.0,0.05857]
[1762156825145,0.7416962,107500.0,107490.0,0.02337]
[1762156825441,0.7416962,107500.0,107490.0,0.002]
[1762156825637,0.7416962,107500.0,107490.0,0.05857]
[1762156826343,0.4202162,107500.0,107490.0,0.05857]
[1762156826541,0.7416962,107500.0,107490.0,0.05857]
[1762156828144,0.7386962,107500.0,107490.0,0.05857]
[1762156829040,0.7356962,107500.0,107490.0,0.05757]
[1762156829240,0.4146862,107500.0,107490.0,0.05757]
[1762156829633,0.7531262,107500.0,107490.0,0.05757]
[1762156829839,0.7531262,107500.0,107490.0,0.04438]
[1762156830039,0.7441262,107500.0,107490.0,0.04338]
[1762156830247,0.7831262,107500.0,107490.0,0.04538]
[1762156831039,0.7831262,107500.0,107490.0,0.002]
[1762156831544,0.7831262,107500.0,107490.0,0.02373]
[1762156831744,0.7811262,107500.0,107490.0,0.04508]
[1762156832246,0.7651262,107500.0,107490.0,0.002]
[1762156832439,0.7841262,107500.0,107490.0,0.002]
[1762156833345,0.80669856,107500.0,107490.0,0.002]
[1762156833742,0.7841262,107500.0,107490.0,0.002]
[1762156834142,0.4626862,107500.0,107490.0,0.05859]
[1762156834343,0.7841662,107500.0,107490.0,0.05859]
[1762156835144,0.7618162,107500.0,107490.0,0.05859]
[1762156835447,0.0580762,107500.0,107490.0,0.05859]
[1762156835746,0.3795562,107500.0,107490.0,0.41939]
[1762156835946,0.0580762,107500.0,107490.0,0.65195]
[1762156836648,0.0580762,107500.0,107490.0,0.41939]
[1762156837642,0.0801162,107500.0,107490.0,0.41939]
[1762156837949,0.1024662,107500.0,107490.0,0.41939]
[1762156841442,0.0634662,107500.0,107490.0,0.41739]
[1762156841749,0.1024662,107500.0,107490.0,0.42039]
[1762156842251,0.0994662,107500.0,107490.0,0.42039]
[1762156842643,0.4602662,107500.0,107490.0,0.05959]
[1762156843150,0.4212662,107500.0,107490.0,0.05659]
[1762156843348,0.4602662,107500.0,107490.0,0.05959]
[1762156844546,0.4602662,107500.0,107490.0,0.003]
[1762156844747,0.48283391,107500.0,107490.0,0.003]
[1762156845543,0.48483391,107500.0,107490.0,0.003]
[1762156845947,0.80659391,107500.0,107490.0,0.06257]
[1762156846152,0.78859391,107500.0,107490.0,0.06257]
[1762156846349,0.48483391,107500.0,107490.0,0.06057]
[1762156846548,0.80659391,107500.0,107490.0,0.06057]
[1762156847353,0.40127405,107500.0,107490.0,0.06057]
[1762156847547,0.0570762,107500.0,107490.0,0.42137]
[1762156847752,0.3789162,107500.0,107490.0,0.42137]
[1762156847951,0.3759162,107500.0,107490.0,0.42137]
[1762156848351,0.3759162,107500.0,107490.0,0.72071657]
[1762156848754,0.3974662,107500.0,107490.0,0.48815657]
[1762156850154,0.3974662,107500.0,107490.0,0.42137]
[1762156852656,0.4193262,107500.0,107490.0,0.42137]
[1762156853760,0.4193262,107500.0,107490.0,0.06057]
[1762156856754,0.3759162,107500.0,107490.0,0.65393]
[1762156857464,0.0540762,107500.0,107490.0,0.42137]
[1762156857655,0.3757162,107500.0,107490.0,0.42137]
[1762156858265,0.4191262,107500.0,107490.0,0.42137]
[1762156860069,0.0974862,107500.0,107490.0,0.42137]
[1762156860366,0.4190862,107500.0,107490.0,0.42137]
[1762156861059,0.4190862,107500.0,107490.0,0.06057]
[1762156861659,0.4190862,107500.0,107490.0,0.42137]
[1762156861862,0.4190862,107500.0,107490.0,0.06057]
[1762156862664,0.4190862,107500.0,107490.0,0.42137]
[1762156862969,0.3972262,107500.0,107490.0,0.42137]
[1762156863471,0.4190862,107500.0,107490.0,0.42137]
[1762156865569,0.4190862,107500.0,107490.0,0.48815657]
[1762156865868,0.3840862,107500.0,107490.0,0.48815657]
[1762156866170,0.4200862,107500.0,107490.0,0.49015657]
[1762156867166,0.0550762,107500.0,107490.0,0.49015657]
[1762156867372,0.40421,107540.0,107530.0,0.05957]
[1762156867568,0.74833696,107540.0,107530.0,0.05957]
[1762156868165,0.72573,107540.0,107530.0,0.05957]
[1762156868372,0.72578995,107540.0,107530.0,0.05957]
[1762156868574,0.32165995,107540.0,107530.0,0.05957]
[1762156868966,0.36506995,107540.0,107530.0,0.05957]
[1762156869169,0.38206995,107540.0,107530.0,0.06057]
[1762156869368,0.42006995,107540.0,107530.0,0.06257]
[1762156869682,0.40306995,107540.0,107530.0,0.06157]
[1762156869876,0.40306995,107540.0,107530.0,0.06257]
[1762156869877,0.42006995,107540.0,107530.0,0.06257]
[1762156870676,0.38206995,107540.0,107530.0,0.06057]
[1762156870876,0.40706995,107540.0,107530.0,0.06457]
[1762156871479,0.39006995,107540.0,107530.0,0.06357]
[1762156871677,0.40006995,107540.0,107530.0,0.06457]
[1762156873080,0.37820995,107540.0,107530.0,0.06457]
[1762156873381,0.03505995,107540.0,107530.0,0.42537]
[1762156873585,0.03505995,107540.0,107530.0,0.65785]